[Event "Titled Tuesday Blitz August 08 Late 2023"]
[White "Tqebuchava, Zurab"]
[Black "dorpato"]
[WhiteFideId "13601113"]
[WhiteElo "2266"]
[BlackElo "2074"]
[Result "1-0"]
[Round "10"]
[TimeControl "180+1"]
[Date "2023.08.08"]
[WhiteClock "0:00:07"]
[BlackClock "0:00:09"]
[Board "101"]

1. e4 {[%clk 0:03:00]}  c5 {[%clk 0:02:56]} 2. Nf3 {[%clk 0:03:00]}  d6 {[%clk 0:02:53]} 3. Bb5+ {[%clk 0:03:00]}  Bd7 {[%clk 0:02:52]} 4. Bxd7+ {[%clk 0:02:59]}  Qxd7 {[%clk 0:02:51]} 5. c4 {[%clk 0:02:58]}  Nf6 {[%clk 0:02:42]} 6. Nc3 {[%clk 0:02:56]}  Nc6 {[%clk 0:02:31]} 7. O-O {[%clk 0:02:50]}  g6 {[%clk 0:02:28]} 8. d4 {[%clk 0:02:40]}  cxd4 {[%clk 0:02:16]} 9. Nxd4 {[%clk 0:02:40]}  Bg7 {[%clk 0:02:05]} 10. Nc2 {[%clk 0:02:07]}  O-O {[%clk 0:02:00]} 11. h3 {[%clk 0:02:05]}  Ne5 {[%clk 0:01:59]} 12. b3 {[%clk 0:01:58]}  b6 {[%clk 0:01:47]} 13. Be3 {[%clk 0:01:53]}  Qb7 {[%clk 0:01:46]} 14. f3 {[%clk 0:01:26]}  Nfd7 {[%clk 0:01:23]} 15. Bd4 {[%clk 0:01:15]}  Nc5 {[%clk 0:01:06]} 16. Qd2 {[%clk 0:01:06]}  Ne6 {[%clk 0:00:50]} 17. Be3 {[%clk 0:01:03]}  Rac8 {[%clk 0:00:43]} 18. Rac1 {[%clk 0:00:51]}  Nc6 {[%clk 0:00:36]} 19. Bh6 {[%clk 0:00:39]}  Rcd8 {[%clk 0:00:23]} 20. Bxg7 {[%clk 0:00:38]}  Kxg7 {[%clk 0:00:23]} 21. Nd5 {[%clk 0:00:38]}  Nc7 {[%clk 0:00:22]} 22. Nce3 {[%clk 0:00:34]}  e6 {[%clk 0:00:22]} 23. Qc3+ {[%clk 0:00:29]}  f6 {[%clk 0:00:22]} 24. Nxc7 {[%clk 0:00:26]}  Qxc7 {[%clk 0:00:22]} 25. Rfd1 {[%clk 0:00:24]}  Ne7 {[%clk 0:00:21]} 26. Kh1 {[%clk 0:00:18]}  Rd7 {[%clk 0:00:21]} 27. Rd3 {[%clk 0:00:16]}  Rfd8 {[%clk 0:00:21]} 28. Rcd1 {[%clk 0:00:16]}  Nc6 {[%clk 0:00:20]} 29. Qd2 {[%clk 0:00:13]}  Ne5 {[%clk 0:00:20]} 30. Rd4 {[%clk 0:00:13]}  Nc6 {[%clk 0:00:19]} 31. Rd3 {[%clk 0:00:13]}  Ne5 {[%clk 0:00:19]} 32. Rc3 {[%clk 0:00:13]}  a6 {[%clk 0:00:19]} 33. Rc2 {[%clk 0:00:13]}  Qc5 {[%clk 0:00:18]} 34. Qd4 {[%clk 0:00:11]}  Qxd4 {[%clk 0:00:17]} 35. Rxd4 {[%clk 0:00:12]}  Nc6 {[%clk 0:00:18]} 36. Rd1 {[%clk 0:00:11]}  Nb4 {[%clk 0:00:18]} 37. Rcd2 {[%clk 0:00:10]}  Kf7 {[%clk 0:00:17]} 38. a3 {[%clk 0:00:10]}  Nc6 {[%clk 0:00:17]} 39. Nc2 {[%clk 0:00:10]}  Ke7 {[%clk 0:00:16]} 40. Nd4 {[%clk 0:00:09]}  Ne5 {[%clk 0:00:16]} 41. f4 {[%clk 0:00:07]}  Nf7 {[%clk 0:00:15]} 42. Nc6+ {[%clk 0:00:07]}  Ke8 {[%clk 0:00:14]} 43. Nxd8 {[%clk 0:00:08]}  Kxd8 {[%clk 0:00:13]} 44. Kg1 {[%clk 0:00:09]}  Kc7 {[%clk 0:00:14]} 45. Kf2 {[%clk 0:00:09]}  Kc6 {[%clk 0:00:14]} 46. Ke3 {[%clk 0:00:08]}  b5 {[%clk 0:00:14]} 47. cxb5+ {[%clk 0:00:08]}  Kxb5 {[%clk 0:00:14]} 48. Rc1 {[%clk 0:00:07]}  Nd8 {[%clk 0:00:13]} 49. Rdc2 {[%clk 0:00:06]}  Nb7 {[%clk 0:00:12]} 50. Rc7 {[%clk 0:00:06]}  Rxc7 {[%clk 0:00:10]} 51. Rxc7 {[%clk 0:00:07]}  Nc5 {[%clk 0:00:10]} 52. Rxh7 {[%clk 0:00:06]}  Nxb3 {[%clk 0:00:10]} 53. Rg7 {[%clk 0:00:06]}  Ka4 {[%clk 0:00:10]} 54. Rxg6 {[%clk 0:00:07]}  Kxa3 {[%clk 0:00:11]} 55. h4 {[%clk 0:00:07]}  Nc5 {[%clk 0:00:10]} 56. h5 {[%clk 0:00:07]}  Kb3 {[%clk 0:00:09]} 57. h6 {[%clk 0:00:08]}  a5 {[%clk 0:00:10]} 58. h7 {[%clk 0:00:08]}  a4 {[%clk 0:00:10]} 59. h8=Q {[%clk 0:00:08]}  a3 {[%clk 0:00:11]} 60. Qb8+ {[%clk 0:00:08]}  Ka2 {[%clk 0:00:09]} 61. Rg7 {[%clk 0:00:07]} 1-0


[Site "https://www.chess.com"]

[Event "Titled Tuesday Blitz August 08 Late 2023"]
[White "Osmonbekov, Talaibek"]
[Black "Petersson, Kjell"]
[WhiteFideId "2017253"]
[BlackFideId "1705148"]
[WhiteElo "2159"]
[BlackElo "2188"]
[Result "1-0"]
[Round "10"]
[TimeControl "180+1"]
[Date "2023.08.08"]
[WhiteClock "0:00:13"]
[BlackClock "0:00:12"]
[Board "106"]

1. d4 {[%clk 0:03:00]}  f5 {[%clk 0:02:59]} 2. Nc3 {[%clk 0:02:59]}  Nf6 {[%clk 0:02:59]} 3. e4 {[%clk 0:03:00]}  fxe4 {[%clk 0:02:57]} 4. Bg5 {[%clk 0:03:00]}  d5 {[%clk 0:02:57]} 5. Qd2 {[%clk 0:03:00]}  Bf5 {[%clk 0:02:38]} 6. f3 {[%clk 0:02:58]}  Nc6 {[%clk 0:02:21]} 7. O-O-O {[%clk 0:02:57]}  Qd7 {[%clk 0:02:19]} 8. Bb5 {[%clk 0:02:46]}  O-O-O {[%clk 0:02:15]} 9. Nge2 {[%clk 0:02:42]}  exf3 {[%clk 0:02:12]} 10. gxf3 {[%clk 0:02:43]}  a6 {[%clk 0:02:08]} 11. Ba4 {[%clk 0:02:39]}  e6 {[%clk 0:02:04]} 12. Ng3 {[%clk 0:02:31]}  Bg6 {[%clk 0:02:02]} 13. Nge2 {[%clk 0:02:20]}  Bb4 {[%clk 0:02:01]} 14. a3 {[%clk 0:02:18]}  Ba5 {[%clk 0:01:57]} 15. h4 {[%clk 0:02:13]}  h6 {[%clk 0:01:37]} 16. Bf4 {[%clk 0:02:12]}  Nh5 {[%clk 0:01:35]} 17. Bh2 {[%clk 0:02:04]}  Rhf8 {[%clk 0:01:34]} 18. Qe3 {[%clk 0:02:04]}  Rf7 {[%clk 0:01:22]} 19. Rhg1 {[%clk 0:01:51]}  Bh7 {[%clk 0:01:19]} 20. Rdf1 {[%clk 0:01:41]}  Rdf8 {[%clk 0:01:19]} 21. Kb1 {[%clk 0:01:39]}  b5 {[%clk 0:01:16]} 22. Bb3 {[%clk 0:01:29]}  Kb7 {[%clk 0:01:10]} 23. Nd1 {[%clk 0:01:25]}  Qe7 {[%clk 0:00:58]} 24. Rg4 {[%clk 0:01:22]}  Nf6 {[%clk 0:00:56]} 25. Rgg1 {[%clk 0:01:13]}  Ne8 {[%clk 0:00:57]} 26. Nf4 {[%clk 0:01:04]}  Rf6 {[%clk 0:00:54]} 27. Nd3 {[%clk 0:00:55]}  Nd6 {[%clk 0:00:52]} 28. Nc5+ {[%clk 0:00:49]}  Ka7 {[%clk 0:00:52]} 29. Be5 {[%clk 0:00:46]}  R6f7 {[%clk 0:00:47]} 30. Bxd6 {[%clk 0:00:32]}  Qxd6 {[%clk 0:00:48]} 31. Qxe6 {[%clk 0:00:27]}  Qxe6 {[%clk 0:00:42]} 32. Nxe6 {[%clk 0:00:27]}  Rg8 {[%clk 0:00:43]} 33. Bxd5 {[%clk 0:00:25]}  Nd8 {[%clk 0:00:40]} 34. Nxd8 {[%clk 0:00:23]}  Rxd8 {[%clk 0:00:41]} 35. Bxf7 {[%clk 0:00:23]}  Rxd4 {[%clk 0:00:38]} 36. Ne3 {[%clk 0:00:16]}  Bb6 {[%clk 0:00:31]} 37. Rxg7 {[%clk 0:00:15]}  Rd2 {[%clk 0:00:26]} 38. Rxh7 {[%clk 0:00:14]}  Bxe3 {[%clk 0:00:26]} 39. Bg6 {[%clk 0:00:13]}  Kb6 {[%clk 0:00:26]} 40. h5 {[%clk 0:00:13]}  Bf4 {[%clk 0:00:25]} 41. Bd3 {[%clk 0:00:13]}  Rh2 {[%clk 0:00:23]} 42. Rf7 {[%clk 0:00:13]}  Bg5 {[%clk 0:00:21]} 43. Bg6 {[%clk 0:00:13]}  Rh4 {[%clk 0:00:18]} 44. f4 {[%clk 0:00:13]}  Bd8 {[%clk 0:00:18]} 45. f5 {[%clk 0:00:13]}  Re4 {[%clk 0:00:16]} 46. f6 {[%clk 0:00:13]}  a5 {[%clk 0:00:15]} 47. Bxe4 {[%clk 0:00:12]}  b4 {[%clk 0:00:15]} 48. Rd7 {[%clk 0:00:12]}  bxa3 {[%clk 0:00:14]} 49. Rxd8 {[%clk 0:00:12]}  axb2 {[%clk 0:00:12]} 50. Kxb2 {[%clk 0:00:13]} 1-0


[Site "https://www.chess.com"]

[Event "Titled Tuesday Blitz August 08 Late 2023"]
[White "Upper, John"]
[Black "Oliveira, Tiago Batista"]
[WhiteFideId "2606437"]
[BlackFideId "2108291"]
[WhiteElo "1950"]
[BlackElo "2171"]
[Result "0-1"]
[Round "10"]
[TimeControl "180+1"]
[Date "2023.08.08"]
[WhiteClock "0:00:01"]
[BlackClock "0:00:01"]
[Board "108"]

1. b3 {[%clk 0:02:57]}  Nf6 {[%clk 0:02:57]} 2. Bb2 {[%clk 0:02:56]}  d5 {[%clk 0:02:57]} 3. e3 {[%clk 0:02:53]}  Bf5 {[%clk 0:02:57]} 4. d3 {[%clk 0:02:47]}  Nbd7 {[%clk 0:02:55]} 5. Nf3 {[%clk 0:02:45]}  e6 {[%clk 0:02:55]} 6. Nbd2 {[%clk 0:02:46]}  Bb4 {[%clk 0:02:44]} 7. a3 {[%clk 0:02:45]}  Ba5 {[%clk 0:02:43]} 8. h3 {[%clk 0:02:40]}  O-O {[%clk 0:02:34]} 9. g4 {[%clk 0:02:30]}  Bg6 {[%clk 0:02:20]} 10. Be2 {[%clk 0:02:03]}  c5 {[%clk 0:02:19]} 11. c4 {[%clk 0:01:43]}  dxc4 {[%clk 0:01:52]} 12. bxc4 {[%clk 0:01:44]}  Qc7 {[%clk 0:01:25]} 13. Qc2 {[%clk 0:01:42]}  Rfd8 {[%clk 0:01:12]} 14. Rd1 {[%clk 0:01:24]}  e5 {[%clk 0:01:04]} 15. Kf1 {[%clk 0:01:22]}  Bxd2 {[%clk 0:01:00]} 16. Nxd2 {[%clk 0:01:15]}  Nf8 {[%clk 0:01:00]} 17. Kg2 {[%clk 0:01:10]}  Ne6 {[%clk 0:00:58]} 18. Ne4 {[%clk 0:00:59]}  Nxe4 {[%clk 0:00:51]} 19. dxe4 {[%clk 0:00:59]}  Ng5 {[%clk 0:00:50]} 20. f3 {[%clk 0:00:48]}  Qc6 {[%clk 0:00:40]} 21. Rd5 {[%clk 0:00:39]}  Rxd5 {[%clk 0:00:28]} 22. cxd5 {[%clk 0:00:34]}  Qxd5 {[%clk 0:00:21]} 23. Bc4 {[%clk 0:00:26]}  Qc6 {[%clk 0:00:15]} 24. h4 {[%clk 0:00:27]}  Nxf3 {[%clk 0:00:14]} 25. h5 {[%clk 0:00:26]}  Bxe4 {[%clk 0:00:13]} 26. Qc3 {[%clk 0:00:21]}  Rd8 {[%clk 0:00:08]} 27. Rf1 {[%clk 0:00:18]}  Rd2+ {[%clk 0:00:08]} 28. Rf2 {[%clk 0:00:18]}  Rxf2+ {[%clk 0:00:07]} 29. Kxf2 {[%clk 0:00:18]}  h6 {[%clk 0:00:04]} 30. Qb3 {[%clk 0:00:10]}  Qf6 {[%clk 0:00:04]} 31. Ke2 {[%clk 0:00:06]}  Qh4 {[%clk 0:00:03]} 32. Bxf7+ {[%clk 0:00:04]}  Kh8 {[%clk 0:00:02]} 33. Kd1 {[%clk 0:00:01]}  Qe1# {[%clk 0:00:01]} 0-1


[Site "https://www.chess.com"]

[Event "Titled Tuesday Blitz August 08 Late 2023"]
[White "Thiel, Thomas"]
[Black "Hirneise, Jens"]
[WhiteFideId "4615964"]
[BlackFideId "24614734"]
[WhiteElo "2173"]
[BlackElo "2494"]
[Result "0-1"]
[Round "10"]
[TimeControl "180+1"]
[Date "2023.08.08"]
[WhiteClock "0:01:36"]
[BlackClock "0:02:08"]
[Board "109"]

1. e4 {[%clk 0:03:00]}  e5 {[%clk 0:02:59]} 2. Nf3 {[%clk 0:02:58]}  Nc6 {[%clk 0:02:58]} 3. d4 {[%clk 0:02:57]}  exd4 {[%clk 0:02:55]} 4. Nxd4 {[%clk 0:02:58]}  Nf6 {[%clk 0:02:55]} 5. Nxc6 {[%clk 0:02:55]}  bxc6 {[%clk 0:02:50]} 6. Qe2 {[%clk 0:02:55]}  Be7 {[%clk 0:02:45]} 7. Nc3 {[%clk 0:02:52]}  O-O {[%clk 0:02:41]} 8. e5 {[%clk 0:02:51]}  Nd5 {[%clk 0:02:39]} 9. Nxd5 {[%clk 0:02:51]}  cxd5 {[%clk 0:02:40]} 10. Bf4 {[%clk 0:02:43]}  d6 {[%clk 0:02:32]} 11. O-O-O {[%clk 0:02:41]}  Be6 {[%clk 0:02:32]} 12. Qd2 {[%clk 0:02:18]}  Rb8 {[%clk 0:02:28]} 13. Bd3 {[%clk 0:02:09]}  c5 {[%clk 0:02:28]} 14. exd6 {[%clk 0:02:06]}  Bxd6 {[%clk 0:02:28]} 15. Bxd6 {[%clk 0:02:05]}  Qxd6 {[%clk 0:02:29]} 16. Qa5 {[%clk 0:01:54]}  c4 {[%clk 0:02:20]} 17. Be2 {[%clk 0:01:42]}  Qf4+ {[%clk 0:02:18]} 18. Kb1 {[%clk 0:01:40]}  Qf6 {[%clk 0:02:10]} 19. c3 {[%clk 0:01:37]}  Qxf2 {[%clk 0:02:09]} 20. Bf3 {[%clk 0:01:36]}  Qxb2# {[%clk 0:02:08]} 0-1


[Site "https://www.chess.com"]

[Event "Titled Tuesday Blitz August 08 Late 2023"]
[White "Semenova, Alina"]
[Black "elcala"]
[WhiteFideId "24113875"]
[WhiteElo "2070"]
[BlackElo "1726"]
[Result "1-0"]
[Round "10"]
[TimeControl "180+1"]
[Date "2023.08.08"]
[WhiteClock "0:01:22"]
[BlackClock "0:00:16"]
[Board "111"]

1. e4 {[%clk 0:02:59]}  d5 {[%clk 0:02:59]} 2. exd5 {[%clk 0:03:00]}  Qxd5 {[%clk 0:02:58]} 3. Nc3 {[%clk 0:02:59]}  Qd6 {[%clk 0:02:57]} 4. d4 {[%clk 0:02:59]}  Nf6 {[%clk 0:02:57]} 5. Nf3 {[%clk 0:02:59]}  Bg4 {[%clk 0:02:56]} 6. Bc4 {[%clk 0:02:59]}  e6 {[%clk 0:02:56]} 7. Be3 {[%clk 0:02:58]}  a6 {[%clk 0:02:54]} 8. h3 {[%clk 0:02:59]}  Bh5 {[%clk 0:02:51]} 9. g4 {[%clk 0:02:58]}  Bg6 {[%clk 0:02:51]} 10. Ne5 {[%clk 0:02:58]}  Nc6 {[%clk 0:02:48]} 11. Nxg6 {[%clk 0:02:56]}  hxg6 {[%clk 0:02:47]} 12. Qf3 {[%clk 0:02:56]}  O-O-O {[%clk 0:02:42]} 13. O-O-O {[%clk 0:02:51]}  Be7 {[%clk 0:02:28]} 14. Bf4 {[%clk 0:02:30]}  Qd7 {[%clk 0:02:19]} 15. Qe3 {[%clk 0:02:13]}  Bd6 {[%clk 0:02:11]} 16. Be5 {[%clk 0:02:05]}  Rh7 {[%clk 0:01:32]} 17. Ne4 {[%clk 0:01:59]}  Nxe4 {[%clk 0:01:30]} 18. Qxe4 {[%clk 0:01:56]}  Bxe5 {[%clk 0:01:28]} 19. dxe5 {[%clk 0:01:56]}  Qe7 {[%clk 0:01:27]} 20. Bxa6 {[%clk 0:01:50]}  Rxd1+ {[%clk 0:01:22]} 21. Rxd1 {[%clk 0:01:40]}  Rxh3 {[%clk 0:01:09]} 22. Rd4 {[%clk 0:01:39]}  bxa6 {[%clk 0:00:47]} 23. Qxc6 {[%clk 0:01:32]}  Qg5+ {[%clk 0:00:46]} 24. Kb1 {[%clk 0:01:26]}  Rh1+ {[%clk 0:00:15]} 25. Qxh1 {[%clk 0:01:24]}  Qxe5 {[%clk 0:00:16]} 26. Qa8# {[%clk 0:01:22]} 1-0


[Site "https://www.chess.com"]

[Event "Titled Tuesday Blitz August 08 Late 2023"]
[White "Perez Ponsa, Federico"]
[Black "Firouzja, Alireza"]
[WhiteFideId "117927"]
[BlackFideId "12573981"]
[WhiteElo "2915"]
[BlackElo "3093"]
[Result "1/2-1/2"]
[Round "11"]
[TimeControl "180+1"]
[Date "2023.08.08"]
[WhiteClock "0:00:04"]
[BlackClock "0:00:03"]
[Board "2"]

1. e4 {[%clk 0:02:59]}  c5 {[%clk 0:02:56]} 2. Nf3 {[%clk 0:02:59]}  d6 {[%clk 0:02:57]} 3. d4 {[%clk 0:02:59]}  cxd4 {[%clk 0:02:57]} 4. Nxd4 {[%clk 0:03:00]}  Nf6 {[%clk 0:02:58]} 5. Nc3 {[%clk 0:02:59]}  Nc6 {[%clk 0:02:58]} 6. Be2 {[%clk 0:02:54]}  e5 {[%clk 0:02:53]} 7. Nb3 {[%clk 0:02:53]}  h6 {[%clk 0:02:52]} 8. O-O {[%clk 0:02:47]}  Be6 {[%clk 0:02:52]} 9. f4 {[%clk 0:02:43]}  Be7 {[%clk 0:02:36]} 10. Kh1 {[%clk 0:02:41]}  a5 {[%clk 0:02:35]} 11. a4 {[%clk 0:02:38]}  O-O {[%clk 0:02:33]} 12. f5 {[%clk 0:02:29]}  Bd7 {[%clk 0:02:33]} 13. g4 {[%clk 0:02:30]}  Nb4 {[%clk 0:02:33]} 14. g5 {[%clk 0:02:28]}  hxg5 {[%clk 0:02:29]} 15. Bxg5 {[%clk 0:02:29]}  Bc6 {[%clk 0:02:21]} 16. Bf3 {[%clk 0:02:27]}  Nh7 {[%clk 0:02:10]} 17. Bxe7 {[%clk 0:01:50]}  Qxe7 {[%clk 0:02:11]} 18. Rg1 {[%clk 0:01:51]}  Kh8 {[%clk 0:02:08]} 19. Rg3 {[%clk 0:01:47]}  Qf6 {[%clk 0:01:49]} 20. Qd2 {[%clk 0:01:44]}  g6 {[%clk 0:01:40]} 21. Qh6 {[%clk 0:01:23]}  gxf5 {[%clk 0:01:23]} 22. Qxf6+ {[%clk 0:01:14]}  Nxf6 {[%clk 0:01:24]} 23. Rh3+ {[%clk 0:01:15]}  Nh7 {[%clk 0:01:20]} 24. exf5 {[%clk 0:01:14]}  Nxc2 {[%clk 0:00:47]} 25. Bxc6 {[%clk 0:01:08]}  bxc6 {[%clk 0:00:37]} 26. Rc1 {[%clk 0:01:07]}  Nb4 {[%clk 0:00:28]} 27. Ne4 {[%clk 0:00:56]}  f6 {[%clk 0:00:28]} 28. Rg1 {[%clk 0:00:56]}  d5 {[%clk 0:00:21]} 29. Nec5 {[%clk 0:00:52]}  Rg8 {[%clk 0:00:17]} 30. Rg6 {[%clk 0:00:52]}  Ra7 {[%clk 0:00:15]} 31. Ne6 {[%clk 0:00:46]}  Rf7 {[%clk 0:00:11]} 32. Nbc5 {[%clk 0:00:46]}  e4 {[%clk 0:00:08]} 33. Kg1 {[%clk 0:00:42]}  Re7 {[%clk 0:00:06]} 34. Kf1 {[%clk 0:00:40]}  Nd3 {[%clk 0:00:05]} 35. Nxd3 {[%clk 0:00:23]}  exd3 {[%clk 0:00:05]} 36. Rgh6 {[%clk 0:00:23]}  Rb7 {[%clk 0:00:04]} 37. b3 {[%clk 0:00:17]}  d2 {[%clk 0:00:04]} 38. Ke2 {[%clk 0:00:16]}  Rg2+ {[%clk 0:00:04]} 39. Kd1 {[%clk 0:00:15]}  Kg8 {[%clk 0:00:05]} 40. Rg3+ {[%clk 0:00:05]}  Rxg3 {[%clk 0:00:05]} 41. hxg3 {[%clk 0:00:05]}  Rxb3 {[%clk 0:00:05]} 42. Rg6+ {[%clk 0:00:05]}  Kh8 {[%clk 0:00:05]} 43. Kxd2 {[%clk 0:00:06]}  Rb4 {[%clk 0:00:05]} 44. g4 {[%clk 0:00:04]}  Rxa4 {[%clk 0:00:05]} 45. Rh6 {[%clk 0:00:03]}  Kg8 {[%clk 0:00:04]} 46. Rg6+ {[%clk 0:00:03]}  Kh8 {[%clk 0:00:05]} 47. Nd8 {[%clk 0:00:03]}  Ng5 {[%clk 0:00:05]} 48. Nxc6 {[%clk 0:00:02]}  Rxg4 {[%clk 0:00:05]} 49. Ne7 {[%clk 0:00:02]}  Ne4+ {[%clk 0:00:05]} 50. Kd3 {[%clk 0:00:03]}  Rxg6 {[%clk 0:00:05]} 51. fxg6 {[%clk 0:00:03]}  Kg7 {[%clk 0:00:05]} 52. Nxd5 {[%clk 0:00:03]}  Nc5+ {[%clk 0:00:03]} 53. Kc4 {[%clk 0:00:03]}  Nb7 {[%clk 0:00:03]} 54. Nf4 {[%clk 0:00:03]}  f5 {[%clk 0:00:03]} 55. Kb5 {[%clk 0:00:03]}  Kf6 {[%clk 0:00:03]} 56. Ka4 {[%clk 0:00:04]}  Nc5+ {[%clk 0:00:02]} 57. Kxa5 {[%clk 0:00:04]}  Ne6 {[%clk 0:00:03]} 58. Nd5+ {[%clk 0:00:02]}  Ke5 {[%clk 0:00:04]} 59. Ne7 {[%clk 0:00:02]}  f4 {[%clk 0:00:02]} 60. g7 {[%clk 0:00:03]}  Nxg7 {[%clk 0:00:02]} 61. Ng6+ {[%clk 0:00:03]}  Kf5 {[%clk 0:00:03]} 62. Nxf4 {[%clk 0:00:04]} 1/2-1/2


[Site "https://www.chess.com"]

[Event "Titled Tuesday Blitz August 08 Late 2023"]
[White "Nguyen, Ngoc Truong Son"]
[Black "Paravyan, David"]
[WhiteFideId "12401110"]
[BlackFideId "4194985"]
[WhiteElo "2962"]
[BlackElo "3053"]
[Result "0-1"]
[Round "11"]
[TimeControl "180+1"]
[Date "2023.08.08"]
[WhiteClock "0:00:03"]
[BlackClock "0:00:17"]
[Board "3"]

1. d4 {[%clk 0:03:00]}  d5 {[%clk 0:02:51]} 2. c4 {[%clk 0:02:59]}  e6 {[%clk 0:02:52]} 3. Nc3 {[%clk 0:02:59]}  Nf6 {[%clk 0:02:51]} 4. cxd5 {[%clk 0:02:58]}  Nxd5 {[%clk 0:02:52]} 5. e4 {[%clk 0:02:58]}  Nxc3 {[%clk 0:02:53]} 6. bxc3 {[%clk 0:02:59]}  c5 {[%clk 0:02:54]} 7. Nf3 {[%clk 0:02:58]}  cxd4 {[%clk 0:02:54]} 8. cxd4 {[%clk 0:02:58]}  Bb4+ {[%clk 0:02:54]} 9. Bd2 {[%clk 0:02:59]}  Bxd2+ {[%clk 0:02:55]} 10. Qxd2 {[%clk 0:02:59]}  O-O {[%clk 0:02:55]} 11. Bc4 {[%clk 0:03:00]}  Nd7 {[%clk 0:02:56]} 12. O-O {[%clk 0:02:58]}  b6 {[%clk 0:02:56]} 13. d5 {[%clk 0:02:54]}  Nf6 {[%clk 0:02:53]} 14. Rfe1 {[%clk 0:02:46]}  exd5 {[%clk 0:02:50]} 15. exd5 {[%clk 0:02:43]}  Bb7 {[%clk 0:02:50]} 16. Rad1 {[%clk 0:02:40]}  b5 {[%clk 0:02:50]} 17. Bxb5 {[%clk 0:02:25]}  Qxd5 {[%clk 0:02:49]} 18. Qxd5 {[%clk 0:01:56]}  Bxd5 {[%clk 0:02:50]} 19. Nd4 {[%clk 0:01:43]}  Bxa2 {[%clk 0:02:49]} 20. Ra1 {[%clk 0:01:33]}  Bd5 {[%clk 0:02:49]} 21. Ra5 {[%clk 0:01:19]}  g6 {[%clk 0:02:43]} 22. Bc6 {[%clk 0:01:10]}  Rad8 {[%clk 0:02:39]} 23. Bxd5 {[%clk 0:01:06]}  Rxd5 {[%clk 0:02:39]} 24. Rxd5 {[%clk 0:01:05]}  Nxd5 {[%clk 0:02:40]} 25. Ra1 {[%clk 0:01:05]}  Ra8 {[%clk 0:02:40]} 26. Nc6 {[%clk 0:00:45]}  a6 {[%clk 0:02:40]} 27. h4 {[%clk 0:00:45]}  Kf8 {[%clk 0:02:39]} 28. h5 {[%clk 0:00:36]}  gxh5 {[%clk 0:02:40]} 29. Ra5 {[%clk 0:00:36]}  Nf6 {[%clk 0:02:40]} 30. Nb4 {[%clk 0:00:36]}  Rb8 {[%clk 0:02:40]} 31. Nxa6 {[%clk 0:00:27]}  Rb1+ {[%clk 0:02:37]} 32. Kh2 {[%clk 0:00:27]}  Kg7 {[%clk 0:02:01]} 33. Nc5 {[%clk 0:00:25]}  Ng4+ {[%clk 0:01:52]} 34. Kg3 {[%clk 0:00:25]}  Rb2 {[%clk 0:01:53]} 35. Ne4 {[%clk 0:00:20]}  Re2 {[%clk 0:01:18]} 36. f3 {[%clk 0:00:17]}  Ne3 {[%clk 0:01:18]} 37. Rxh5 {[%clk 0:00:15]}  Rxg2+ {[%clk 0:01:15]} 38. Kf4 {[%clk 0:00:15]}  Nc2 {[%clk 0:01:12]} 39. Ng3 {[%clk 0:00:14]}  Nd4 {[%clk 0:00:46]} 40. Re5 {[%clk 0:00:09]}  Ne6+ {[%clk 0:00:41]} 41. Kg4 {[%clk 0:00:09]}  Kg6 {[%clk 0:00:41]} 42. f4 {[%clk 0:00:08]}  h5+ {[%clk 0:00:19]} 43. Kf3 {[%clk 0:00:08]}  Ra2 {[%clk 0:00:19]} 44. Nxh5 {[%clk 0:00:06]}  Nd4+ {[%clk 0:00:17]} 45. Ke4 {[%clk 0:00:05]}  Nf5 {[%clk 0:00:17]} 46. Kf3 {[%clk 0:00:02]}  Ra3+ {[%clk 0:00:14]} 47. Kg4 {[%clk 0:00:02]}  Ne3+ {[%clk 0:00:14]} 48. Kh4 {[%clk 0:00:03]}  Ng2+ {[%clk 0:00:14]} 49. Kg4 {[%clk 0:00:02]}  f5+ {[%clk 0:00:15]} 50. Rxf5 {[%clk 0:00:02]}  Ne3+ {[%clk 0:00:16]} 51. Kh4 {[%clk 0:00:03]}  Nxf5+ {[%clk 0:00:17]} 52. Kg4 {[%clk 0:00:03]}  Nh6+ {[%clk 0:00:17]} 0-1


[Site "https://www.chess.com"]

[Event "Titled Tuesday Blitz August 08 Late 2023"]
[White "Morefield, Jason"]
[Black "Henriquez Villagra, Cristobal"]
[WhiteFideId "30920825"]
[BlackFideId "3409350"]
[WhiteElo "2743"]
[BlackElo "2869"]
[Result "1-0"]
[Round "11"]
[TimeControl "180+1"]
[Date "2023.08.08"]
[WhiteClock "0:00:05"]
[BlackClock "0:00:05"]
[Board "8"]

1. e4 {[%clk 0:03:00]}  d6 {[%clk 0:02:59]} 2. d4 {[%clk 0:03:00]}  Nf6 {[%clk 0:02:58]} 3. Nc3 {[%clk 0:03:01]}  e5 {[%clk 0:02:55]} 4. dxe5 {[%clk 0:03:01]}  dxe5 {[%clk 0:02:56]} 5. Qxd8+ {[%clk 0:03:01]}  Kxd8 {[%clk 0:02:57]} 6. Bc4 {[%clk 0:03:01]}  Ke8 {[%clk 0:02:57]} 7. f4 {[%clk 0:03:01]}  Bb4 {[%clk 0:02:55]} 8. Bd3 {[%clk 0:02:57]}  Nbd7 {[%clk 0:02:53]} 9. Nf3 {[%clk 0:02:56]}  Nc5 {[%clk 0:02:54]} 10. O-O {[%clk 0:02:53]}  Bxc3 {[%clk 0:02:41]} 11. bxc3 {[%clk 0:02:53]}  exf4 {[%clk 0:02:41]} 12. Bxf4 {[%clk 0:02:47]}  c6 {[%clk 0:02:40]} 13. Rae1 {[%clk 0:02:37]}  Be6 {[%clk 0:02:39]} 14. Nd4 {[%clk 0:02:32]}  Nfd7 {[%clk 0:02:22]} 15. Bd6 {[%clk 0:01:54]}  g6 {[%clk 0:01:26]} 16. Nf5 {[%clk 0:01:30]}  Bxa2 {[%clk 0:00:50]} 17. Ng7+ {[%clk 0:00:38]}  Kd8 {[%clk 0:00:49]} 18. c4 {[%clk 0:00:28]}  b5 {[%clk 0:00:45]} 19. cxb5 {[%clk 0:00:20]}  Nxd3 {[%clk 0:00:44]} 20. cxd3 {[%clk 0:00:19]}  cxb5 {[%clk 0:00:44]} 21. Ra1 {[%clk 0:00:18]}  Rg8 {[%clk 0:00:38]} 22. Rxa2 {[%clk 0:00:17]}  Rxg7 {[%clk 0:00:37]} 23. Rb1 {[%clk 0:00:16]}  g5 {[%clk 0:00:08]} 24. Rxb5 {[%clk 0:00:15]}  Rg6 {[%clk 0:00:09]} 25. e5 {[%clk 0:00:14]}  Re6 {[%clk 0:00:09]} 26. d4 {[%clk 0:00:12]}  f6 {[%clk 0:00:10]} 27. d5 {[%clk 0:00:07]}  Rxe5 {[%clk 0:00:10]} 28. Bxe5 {[%clk 0:00:07]}  Nxe5 {[%clk 0:00:11]} 29. Rb7 {[%clk 0:00:06]}  Rc8 {[%clk 0:00:10]} 30. Raxa7 {[%clk 0:00:05]}  h5 {[%clk 0:00:07]} 31. Rh7 {[%clk 0:00:04]}  Rc1+ {[%clk 0:00:08]} 32. Kf2 {[%clk 0:00:04]}  Rc2+ {[%clk 0:00:07]} 33. Ke3 {[%clk 0:00:04]}  Ng6 {[%clk 0:00:04]} 34. Ra8+ {[%clk 0:00:04]}  Rc8 {[%clk 0:00:05]} 35. Rxc8+ {[%clk 0:00:04]}  Kxc8 {[%clk 0:00:06]} 36. Ke4 {[%clk 0:00:03]}  h4 {[%clk 0:00:05]} 37. Rf7 {[%clk 0:00:02]}  Ne5 {[%clk 0:00:03]} 38. Rxf6 {[%clk 0:00:02]}  Ng4 {[%clk 0:00:04]} 39. Rg6 {[%clk 0:00:02]}  Nxh2 {[%clk 0:00:03]} 40. Rxg5 {[%clk 0:00:02]}  Nf1 {[%clk 0:00:04]} 41. Kf3 {[%clk 0:00:03]}  Nd2+ {[%clk 0:00:04]} 42. Kg4 {[%clk 0:00:03]}  Kd7 {[%clk 0:00:05]} 43. Kxh4 {[%clk 0:00:04]}  Ne4 {[%clk 0:00:06]} 44. Rf5 {[%clk 0:00:03]}  Nd6 {[%clk 0:00:05]} 45. g4 {[%clk 0:00:03]}  Ke7 {[%clk 0:00:05]} 46. Kg5 {[%clk 0:00:04]}  Ne4+ {[%clk 0:00:06]} 47. Kf4 {[%clk 0:00:04]}  Nd6 {[%clk 0:00:05]} 48. Re5+ {[%clk 0:00:05]} 1-0


[Site "https://www.chess.com"]